[Event "Titled Tuesday Blitz January 25 2022"]
[White "Horvath, Dominik"]
[Black "Brunner, Nicolas"]
[WhiteFideId "1642561"]
[BlackFideId "620246"]
[WhiteElo "2336"]
[BlackElo "2372"]
[Result "1-0"]
[Round "02"]
[TimeControl "180+1"]
[Date "2022.01.26"]
[WhiteClock "0:01:17"]
[BlackClock "0:00:04"]

1. Nf3 {[%clk 0:03:00]}  c5 {[%clk 0:02:59]} 2. c4 {[%clk 0:02:59]}  Nc6 {[%clk 0:02:56]} 3. Nc3 {[%clk 0:02:58]}  e5 {[%clk 0:02:56]} 4. e3 {[%clk 0:02:57]}  Nf6 {[%clk 0:02:52]} 5. d4 {[%clk 0:02:41]}  cxd4 {[%clk 0:02:52]} 6. exd4 {[%clk 0:02:42]}  e4 {[%clk 0:02:52]} 7. Ne5 {[%clk 0:02:41]}  Bb4 {[%clk 0:02:50]} 8. Be2 {[%clk 0:02:23]}  Qa5 {[%clk 0:02:49]} 9. O-O {[%clk 0:02:22]}  Bxc3 {[%clk 0:02:48]} 10. bxc3 {[%clk 0:02:19]}  Qxc3 {[%clk 0:02:47]} 11. Nxc6 {[%clk 0:02:19]}  dxc6 {[%clk 0:02:47]} 12. Rb1 {[%clk 0:02:16]}  O-O {[%clk 0:02:39]} 13. Rb3 {[%clk 0:02:15]}  Qa5 {[%clk 0:02:38]} 14. Rg3 {[%clk 0:02:15]}  Bf5 {[%clk 0:02:33]} 15. Rg5 {[%clk 0:02:04]}  h6 {[%clk 0:02:28]} 16. Bd2 {[%clk 0:02:03]}  Qxd2 {[%clk 0:02:03]} 17. Qxd2 {[%clk 0:02:03]}  hxg5 {[%clk 0:02:03]} 18. Qxg5 {[%clk 0:02:04]}  Bg6 {[%clk 0:02:03]} 19. h4 {[%clk 0:02:02]}  Rfd8 {[%clk 0:02:01]} 20. h5 {[%clk 0:02:01]}  Bh7 {[%clk 0:01:58]} 21. Rd1 {[%clk 0:02:01]}  Nd7 {[%clk 0:01:44]} 22. h6 {[%clk 0:01:59]}  Bg6 {[%clk 0:01:44]} 23. Bh5 {[%clk 0:01:48]}  Nf8 {[%clk 0:01:42]} 24. d5 {[%clk 0:01:42]}  cxd5 {[%clk 0:01:31]} 25. cxd5 {[%clk 0:01:41]}  Rd6 {[%clk 0:01:27]} 26. Qe5 {[%clk 0:01:39]}  Rf6 {[%clk 0:01:23]} 27. hxg7 {[%clk 0:01:37]}  Kxg7 {[%clk 0:01:16]} 28. Bg4 {[%clk 0:01:31]}  Rd8 {[%clk 0:00:41]} 29. d6 {[%clk 0:01:29]}  Ne6 {[%clk 0:00:19]} 30. d7 {[%clk 0:01:22]}  b6 {[%clk 0:00:17]} 31. Rd6 {[%clk 0:01:20]}  Bh7 {[%clk 0:00:04]} 32. Bxe6 {[%clk 0:01:17]}  fxe6 {[%clk 0:00:04]} 33. Rxe6 {[%clk 0:01:17]} 1-0


[Site "https://www.chess.com"]

[Event "Titled Tuesday Blitz January 25 2022"]
[White "Ibrahimli, Murad"]
[Black "Coto Mederos, Michel"]
[WhiteFideId "13410229"]
[BlackFideId "3508528"]
[WhiteElo "2109"]
[BlackElo "2427"]
[Result "1-0"]
[Round "02"]
[TimeControl "180+1"]
[Date "2022.01.26"]
[WhiteClock "0:00:20"]
[BlackClock "0:00:01"]

1. Nf3 {[%clk 0:03:00]}  d5 {[%clk 0:02:58]} 2. d4 {[%clk 0:03:01]}  Nf6 {[%clk 0:02:57]} 3. c4 {[%clk 0:03:01]}  e6 {[%clk 0:02:56]} 4. Nc3 {[%clk 0:03:01]}  Be7 {[%clk 0:02:55]} 5. Bf4 {[%clk 0:03:01]}  b6 {[%clk 0:02:55]} 6. e3 {[%clk 0:03:01]}  Bb7 {[%clk 0:02:54]} 7. Rc1 {[%clk 0:03:01]}  c5 {[%clk 0:02:45]} 8. cxd5 {[%clk 0:02:56]}  exd5 {[%clk 0:02:42]} 9. Bb5+ {[%clk 0:02:54]}  Nbd7 {[%clk 0:02:40]} 10. Ne5 {[%clk 0:02:54]}  Rc8 {[%clk 0:02:29]} 11. Qe2 {[%clk 0:02:36]}  O-O {[%clk 0:02:26]} 12. O-O {[%clk 0:02:34]}  c4 {[%clk 0:02:06]} 13. Ba4 {[%clk 0:02:25]}  a6 {[%clk 0:02:02]} 14. Bc2 {[%clk 0:02:25]}  b5 {[%clk 0:01:59]} 15. a3 {[%clk 0:02:25]}  Ne4 {[%clk 0:01:39]} 16. Nxe4 {[%clk 0:02:12]}  dxe4 {[%clk 0:01:39]} 17. f3 {[%clk 0:02:13]}  Nxe5 {[%clk 0:01:18]} 18. Bxe5 {[%clk 0:02:13]}  exf3 {[%clk 0:01:08]} 19. gxf3 {[%clk 0:02:14]}  Bd6 {[%clk 0:01:03]} 20. Bxd6 {[%clk 0:02:09]}  Qxd6 {[%clk 0:01:04]} 21. Rcd1 {[%clk 0:02:09]}  c3 {[%clk 0:01:01]} 22. b4 {[%clk 0:02:06]}  Rfe8 {[%clk 0:00:57]} 23. e4 {[%clk 0:02:02]}  f5 {[%clk 0:00:46]} 24. e5 {[%clk 0:01:59]}  Qg6+ {[%clk 0:00:46]} 25. Kh1 {[%clk 0:01:58]}  Qh5 {[%clk 0:00:46]} 26. d5 {[%clk 0:01:23]}  Rcd8 {[%clk 0:00:40]} 27. Bb3 {[%clk 0:01:02]}  f4 {[%clk 0:00:40]} 28. Rfe1 {[%clk 0:00:53]}  Rd6 {[%clk 0:00:39]} 29. Qe4 {[%clk 0:00:39]}  Rxe5 {[%clk 0:00:35]} 30. Qxf4 {[%clk 0:00:32]}  Rxe1+ {[%clk 0:00:20]} 31. Rxe1 {[%clk 0:00:33]}  Qg6 {[%clk 0:00:05]} 32. Re6 {[%clk 0:00:19]}  Rxe6 {[%clk 0:00:04]} 33. dxe6 {[%clk 0:00:19]}  Qb1+ {[%clk 0:00:01]} 34. Kg2 {[%clk 0:00:20]} 1-0


[Site "https://www.chess.com"]

[Event "Titled Tuesday Blitz January 25 2022"]
[White "Ingebretsen, Jens E"]
[Black "Efimenko, Zahar"]
[WhiteFideId "1522965"]
[BlackFideId "14107201"]
[WhiteElo "2072"]
[BlackElo "2528"]
[Result "0-1"]
[Round "02"]
[TimeControl "180+1"]
[Date "2022.01.26"]
[WhiteClock "0:00:04"]
[BlackClock "0:00:10"]

1. e4 {[%clk 0:03:00]}  e5 {[%clk 0:02:41]} 2. Nf3 {[%clk 0:03:00]}  Nc6 {[%clk 0:02:40]} 3. Bb5 {[%clk 0:03:00]}  a6 {[%clk 0:02:40]} 4. Ba4 {[%clk 0:03:00]}  Nf6 {[%clk 0:02:39]} 5. O-O {[%clk 0:03:00]}  Be7 {[%clk 0:02:39]} 6. Re1 {[%clk 0:02:59]}  b5 {[%clk 0:02:35]} 7. Bb3 {[%clk 0:02:59]}  d6 {[%clk 0:02:35]} 8. c3 {[%clk 0:02:58]}  O-O {[%clk 0:02:35]} 9. h3 {[%clk 0:02:58]}  Nb8 {[%clk 0:02:34]} 10. d4 {[%clk 0:02:58]}  Nbd7 {[%clk 0:02:34]} 11. Nbd2 {[%clk 0:02:45]}  c5 {[%clk 0:02:33]} 12. Nf1 {[%clk 0:02:43]}  Re8 {[%clk 0:02:31]} 13. Ng3 {[%clk 0:02:37]}  Bf8 {[%clk 0:02:31]} 14. a4 {[%clk 0:02:31]}  Rb8 {[%clk 0:02:29]} 15. axb5 {[%clk 0:02:27]}  axb5 {[%clk 0:02:28]} 16. d5 {[%clk 0:01:56]}  c4 {[%clk 0:02:25]} 17. Bc2 {[%clk 0:01:56]}  Nc5 {[%clk 0:02:24]} 18. Be3 {[%clk 0:01:55]}  Qc7 {[%clk 0:02:23]} 19. Bg5 {[%clk 0:01:46]}  Be7 {[%clk 0:02:20]} 20. Nh4 {[%clk 0:01:42]}  g6 {[%clk 0:02:00]} 21. f4 {[%clk 0:01:33]}  exf4 {[%clk 0:01:56]} 22. Bxf4 {[%clk 0:01:30]}  Nfd7 {[%clk 0:01:24]} 23. Nhf5 {[%clk 0:01:12]}  gxf5 {[%clk 0:01:18]} 24. Nxf5 {[%clk 0:01:12]}  Ne5 {[%clk 0:01:17]} 25. Bxe5 {[%clk 0:00:55]}  Bxf5 {[%clk 0:01:15]} 26. exf5 {[%clk 0:00:38]}  dxe5 {[%clk 0:01:14]} 27. Qg4+ {[%clk 0:00:32]}  Kf8 {[%clk 0:01:10]} 28. Qh5 {[%clk 0:00:26]}  Bf6 {[%clk 0:01:07]} 29. Qxh7 {[%clk 0:00:26]}  Ke7 {[%clk 0:01:03]} 30. d6+ {[%clk 0:00:25]}  Qxd6 {[%clk 0:01:00]} 31. Ra7+ {[%clk 0:00:17]}  Rb7 {[%clk 0:00:59]} 32. Rxb7+ {[%clk 0:00:15]}  Nxb7 {[%clk 0:00:59]} 33. Rd1 {[%clk 0:00:16]}  Qc5+ {[%clk 0:00:48]} 34. Kh1 {[%clk 0:00:16]}  Rh8 {[%clk 0:00:47]} 35. Rd7+ {[%clk 0:00:14]}  Kxd7 {[%clk 0:00:45]} 36. Qxf7+ {[%clk 0:00:15]}  Qe7 {[%clk 0:00:37]} 37. Qd5+ {[%clk 0:00:12]}  Kc7 {[%clk 0:00:33]} 38. Be4 {[%clk 0:00:09]}  Kb8 {[%clk 0:00:32]} 39. Qxb5 {[%clk 0:00:09]}  Rc8 {[%clk 0:00:28]} 40. Qb6 {[%clk 0:00:06]}  Rc7 {[%clk 0:00:23]} 41. g4 {[%clk 0:00:05]}  Qd6 {[%clk 0:00:22]} 42. Qb5 {[%clk 0:00:04]}  Qd1+ {[%clk 0:00:19]} 43. Kh2 {[%clk 0:00:05]}  Qe2+ {[%clk 0:00:18]} 44. Bg2 {[%clk 0:00:05]}  e4 {[%clk 0:00:17]} 45. Qe8+ {[%clk 0:00:06]}  Rc8 {[%clk 0:00:16]} 46. Qf7 {[%clk 0:00:05]}  Be5+ {[%clk 0:00:15]} 47. Kg1 {[%clk 0:00:06]}  Qe1+ {[%clk 0:00:13]} 48. Bf1 {[%clk 0:00:06]}  Qe3+ {[%clk 0:00:13]} 49. Kh1 {[%clk 0:00:06]}  Qf3+ {[%clk 0:00:13]} 50. Kg1 {[%clk 0:00:03]}  e3 {[%clk 0:00:12]} 51. Bg2 {[%clk 0:00:03]}  Qf2+ {[%clk 0:00:11]} 52. Kh1 {[%clk 0:00:03]}  Qe1+ {[%clk 0:00:11]} 53. Bf1 {[%clk 0:00:04]}  Qxf1# {[%clk 0:00:10]} 0-1


[Site "https://www.chess.com"]

[Event "Titled Tuesday Blitz January 25 2022"]
[White "Iskusnyh, Sergei"]
[Black "Sarana, Alexey"]
[WhiteFideId "4120027"]
[BlackFideId "24133795"]
[WhiteElo "2492"]
[BlackElo "2665"]
[Result "0-1"]
[Round "02"]
[TimeControl "180+1"]
[Date "2022.01.26"]
[WhiteClock "0:00:02"]
[BlackClock "0:00:14"]

1. d4 {[%clk 0:03:00]}  Nf6 {[%clk 0:02:50]} 2. c4 {[%clk 0:03:00]}  g6 {[%clk 0:02:50]} 3. g3 {[%clk 0:03:00]}  c6 {[%clk 0:02:50]} 4. Bg2 {[%clk 0:03:00]}  d5 {[%clk 0:02:51]} 5. e3 {[%clk 0:03:00]}  dxc4 {[%clk 0:02:49]} 6. Ne2 {[%clk 0:02:52]}  Bg7 {[%clk 0:02:49]} 7. O-O {[%clk 0:02:45]}  O-O {[%clk 0:02:47]} 8. Na3 {[%clk 0:02:44]}  Be6 {[%clk 0:02:31]} 9. Qc2 {[%clk 0:02:15]}  Nd5 {[%clk 0:02:19]} 10. Nxc4 {[%clk 0:02:08]}  Nb4 {[%clk 0:02:17]} 11. Qb3 {[%clk 0:01:56]}  a5 {[%clk 0:02:03]} 12. Nf4 {[%clk 0:01:55]}  Bd5 {[%clk 0:01:55]} 13. Nxd5 {[%clk 0:01:31]}  cxd5 {[%clk 0:01:56]} 14. Nxa5 {[%clk 0:01:22]}  Qxa5 {[%clk 0:01:55]} 15. Bd2 {[%clk 0:01:22]}  N8c6 {[%clk 0:01:26]} 16. a3 {[%clk 0:01:22]}  e6 {[%clk 0:01:25]} 17. Bxb4 {[%clk 0:01:19]}  Qb6 {[%clk 0:01:17]} 18. Rfc1 {[%clk 0:01:15]}  Rfc8 {[%clk 0:01:14]} 19. Qc2 {[%clk 0:01:05]}  Nxb4 {[%clk 0:00:59]} 20. Qxc8+ {[%clk 0:01:04]}  Rxc8 {[%clk 0:00:59]} 21. Rxc8+ {[%clk 0:01:04]}  Bf8 {[%clk 0:01:00]} 22. axb4 {[%clk 0:01:05]}  Kg7 {[%clk 0:01:01]} 23. Raa8 {[%clk 0:00:56]}  Bxb4 {[%clk 0:01:01]} 24. Rg8+ {[%clk 0:00:54]}  Kf6 {[%clk 0:01:00]} 25. Bf1 {[%clk 0:00:43]}  Be7 {[%clk 0:00:59]} 26. Ra2 {[%clk 0:00:40]}  Qb3 {[%clk 0:00:58]} 27. Ra7 {[%clk 0:00:37]}  Qb6 {[%clk 0:00:54]} 28. Ra2 {[%clk 0:00:36]}  h5 {[%clk 0:00:54]} 29. h4 {[%clk 0:00:35]}  Bd6 {[%clk 0:00:54]} 30. Rc8 {[%clk 0:00:26]}  Qb3 {[%clk 0:00:53]} 31. Ra7 {[%clk 0:00:23]}  Qxb2 {[%clk 0:00:42]} 32. Rd8 {[%clk 0:00:23]}  Qb6 {[%clk 0:00:42]} 33. Raa8 {[%clk 0:00:23]}  Be7 {[%clk 0:00:40]} 34. Rd7 {[%clk 0:00:22]}  Qc6 {[%clk 0:00:40]} 35. Rxe7 {[%clk 0:00:14]}  Kxe7 {[%clk 0:00:41]} 36. Ra5 {[%clk 0:00:13]}  Qc7 {[%clk 0:00:41]} 37. Rb5 {[%clk 0:00:13]}  f6 {[%clk 0:00:41]} 38. Bd3 {[%clk 0:00:12]}  g5 {[%clk 0:00:41]} 39. hxg5 {[%clk 0:00:12]}  fxg5 {[%clk 0:00:42]} 40. Kg2 {[%clk 0:00:12]}  Kf6 {[%clk 0:00:41]} 41. Be2 {[%clk 0:00:12]}  h4 {[%clk 0:00:41]} 42. gxh4 {[%clk 0:00:12]}  gxh4 {[%clk 0:00:41]} 43. Bg4 {[%clk 0:00:12]}  Qc6 {[%clk 0:00:34]} 44. Be2 {[%clk 0:00:11]}  b6 {[%clk 0:00:30]} 45. Rb2 {[%clk 0:00:09]}  Kg5 {[%clk 0:00:28]} 46. Rb5 {[%clk 0:00:08]}  Qc2 {[%clk 0:00:27]} 47. Bf3 {[%clk 0:00:08]}  Qc6 {[%clk 0:00:15]} 48. Rb2 {[%clk 0:00:07]}  Kf5 {[%clk 0:00:16]} 49. Rb3 {[%clk 0:00:04]}  Qc7 {[%clk 0:00:15]} 50. Rb5 {[%clk 0:00:04]}  Qg7+ {[%clk 0:00:15]} 51. Kh2 {[%clk 0:00:03]}  Qd7 {[%clk 0:00:14]} 52. Rb4 {[%clk 0:00:02]}  Qd6+ {[%clk 0:00:14]} 0-1


[Site "https://www.chess.com"]

[Event "Titled Tuesday Blitz January 25 2022"]
[White "Jacobson, Aaron"]
[Black "Concio, Michael Jr."]
[WhiteFideId "2089912"]
[BlackFideId "5217873"]
[WhiteElo "2265"]
[BlackElo "1896"]
[Result "1-0"]
[Round "02"]
[TimeControl "180+1"]
[Date "2022.01.26"]
[WhiteClock "0:00:07"]
[BlackClock "0:00:02"]

1. e4 {[%clk 0:03:00]}  c6 {[%clk 0:02:58]} 2. d4 {[%clk 0:02:59]}  d5 {[%clk 0:02:59]} 3. exd5 {[%clk 0:02:59]}  cxd5 {[%clk 0:02:59]} 4. Nf3 {[%clk 0:03:00]}  Nc6 {[%clk 0:02:58]} 5. Ne5 {[%clk 0:03:01]}  Nf6 {[%clk 0:02:40]} 6. c3 {[%clk 0:03:00]}  e6 {[%clk 0:02:37]} 7. Bd3 {[%clk 0:03:01]}  Be7 {[%clk 0:02:36]} 8. Qe2 {[%clk 0:02:58]}  Nxe5 {[%clk 0:02:35]} 9. dxe5 {[%clk 0:02:58]}  Nd7 {[%clk 0:02:36]} 10. Nd2 {[%clk 0:02:58]}  Qc7 {[%clk 0:02:33]} 11. Nf3 {[%clk 0:02:58]}  Nc5 {[%clk 0:02:31]} 12. O-O {[%clk 0:02:07]}  Nxd3 {[%clk 0:02:30]} 13. Qxd3 {[%clk 0:02:08]}  O-O {[%clk 0:02:26]} 14. Re1 {[%clk 0:02:08]}  h6 {[%clk 0:02:16]} 15. Bf4 {[%clk 0:02:06]}  Bd7 {[%clk 0:02:15]} 16. Nd4 {[%clk 0:02:06]}  Rac8 {[%clk 0:02:11]} 17. Re3 {[%clk 0:02:06]}  Qc4 {[%clk 0:01:21]} 18. Qd2 {[%clk 0:02:06]}  g5 {[%clk 0:01:12]} 19. Bg3 {[%clk 0:01:50]}  Bc5 {[%clk 0:01:03]} 20. b3 {[%clk 0:01:39]}  Qa6 {[%clk 0:01:01]} 21. h4 {[%clk 0:01:40]}  Kh8 {[%clk 0:00:41]} 22. hxg5 {[%clk 0:00:40]}  hxg5 {[%clk 0:00:41]} 23. Bh2 {[%clk 0:00:38]}  Rg8 {[%clk 0:00:17]} 24. Rh3+ {[%clk 0:00:31]}  Kg7 {[%clk 0:00:18]} 25. Qxg5+ {[%clk 0:00:31]}  Kf8 {[%clk 0:00:18]} 26. Qh6+ {[%clk 0:00:32]}  Ke8 {[%clk 0:00:19]} 27. Qh7 {[%clk 0:00:29]}  Rf8 {[%clk 0:00:17]} 28. Bf4 {[%clk 0:00:27]}  Bxd4 {[%clk 0:00:07]} 29. cxd4 {[%clk 0:00:28]}  Qe2 {[%clk 0:00:08]} 30. Bh6 {[%clk 0:00:26]}  Rc2 {[%clk 0:00:08]} 31. Rf1 {[%clk 0:00:25]}  Bb5 {[%clk 0:00:07]} 32. Qg7 {[%clk 0:00:08]}  Qxf1+ {[%clk 0:00:07]} 33. Kh2 {[%clk 0:00:09]}  Rxf2 {[%clk 0:00:04]} 34. Qxf8+ {[%clk 0:00:09]}  Kd7 {[%clk 0:00:05]} 35. Qd6+ {[%clk 0:00:09]}  Kc8 {[%clk 0:00:05]} 36. Rg3 {[%clk 0:00:09]}  Be8 {[%clk 0:00:02]} 37. Rg8 {[%clk 0:00:09]}  Qb5 {[%clk 0:00:03]} 38. Qe7 {[%clk 0:00:07]}  Qd7 {[%clk 0:00:01]} 39. Rxe8+ {[%clk 0:00:08]}  Kc7 {[%clk 0:00:01]} 40. Qc5+ {[%clk 0:00:09]}  Qc6 {[%clk 0:00:01]} 41. Re7+ {[%clk 0:00:06]}  Kd8 {[%clk 0:00:02]} 42. Qxc6 {[%clk 0:00:04]}  bxc6 {[%clk 0:00:03]} 43. Rxa7 {[%clk 0:00:05]}  Kc8 {[%clk 0:00:02]} 44. Ra6 {[%clk 0:00:04]}  Kb7 {[%clk 0:00:02]} 45. Ra4 {[%clk 0:00:05]}  Rf1 {[%clk 0:00:02]} 46. Bg5 {[%clk 0:00:05]}  Rd1 {[%clk 0:00:02]} 47. Bf6 {[%clk 0:00:05]}  Rd2 {[%clk 0:00:02]} 48. Kh3 {[%clk 0:00:05]}  Kb6 {[%clk 0:00:03]} 49. g4 {[%clk 0:00:05]}  Kb5 {[%clk 0:00:04]} 50. Kh4 {[%clk 0:00:06]}  Rh2+ {[%clk 0:00:03]} 51. Kg5 {[%clk 0:00:06]}  Rh1 {[%clk 0:00:03]} 52. Ra7 {[%clk 0:00:05]}  Rh7 {[%clk 0:00:02]} 53. Rb7+ {[%clk 0:00:05]}  Ka6 {[%clk 0:00:02]} 54. Rb8 {[%clk 0:00:05]}  Ka7 {[%clk 0:00:02]} 55. Rb4 {[%clk 0:00:06]}  Rh1 {[%clk 0:00:01]} 56. Be7 {[%clk 0:00:06]}  Rf1 {[%clk 0:00:01]} 57. Bc5+ {[%clk 0:00:06]}  Ka6 {[%clk 0:00:01]} 58. Rb6+ {[%clk 0:00:06]}  Ka5 {[%clk 0:00:02]} 59. b4+ {[%clk 0:00:06]}  Ka4 {[%clk 0:00:02]} 60. Rxc6 {[%clk 0:00:07]} 1-0


[Site "https://www.chess.com"]

[Event "Titled Tuesday Blitz January 25 2022"]
[White "Jaracz, Pawel"]
[Black "Kashefi, Amir Hosein"]
[WhiteFideId "1102222"]
[BlackFideId "12557935"]
[WhiteElo "2429"]
[BlackElo "2098"]
[Result "1-0"]
[Round "02"]
[TimeControl "180+1"]
[Date "2022.01.26"]
[WhiteClock "0:00:58"]
[BlackClock "0:00:07"]

1. d4 {[%clk 0:03:00]}  d5 {[%clk 0:02:57]} 2. c4 {[%clk 0:03:00]}  c6 {[%clk 0:02:57]} 3. Nf3 {[%clk 0:03:00]}  Nf6 {[%clk 0:02:55]} 4. Qc2 {[%clk 0:03:00]}  g6 {[%clk 0:02:55]} 5. Bf4 {[%clk 0:02:58]}  Bg7 {[%clk 0:02:52]} 6. e3 {[%clk 0:02:56]}  O-O {[%clk 0:02:52]} 7. Nbd2 {[%clk 0:02:52]}  a6 {[%clk 0:02:39]} 8. Bd3 {[%clk 0:02:41]}  b5 {[%clk 0:02:33]} 9. c5 {[%clk 0:02:30]}  a5 {[%clk 0:02:26]} 10. O-O {[%clk 0:02:30]}  Ba6 {[%clk 0:02:25]} 11. a3 {[%clk 0:02:20]}  Nbd7 {[%clk 0:02:14]} 12. b4 {[%clk 0:02:19]}  Bb7 {[%clk 0:02:09]} 13. Nb3 {[%clk 0:02:17]}  a4 {[%clk 0:01:58]} 14. Na5 {[%clk 0:02:17]}  Ra7 {[%clk 0:01:57]} 15. h3 {[%clk 0:02:11]}  Re8 {[%clk 0:01:53]} 16. Ne5 {[%clk 0:02:07]}  Nxe5 {[%clk 0:01:52]} 17. Bxe5 {[%clk 0:02:04]}  Ba8 {[%clk 0:01:44]} 18. f4 {[%clk 0:01:57]}  Nd7 {[%clk 0:01:42]} 19. Bxg7 {[%clk 0:01:55]}  Kxg7 {[%clk 0:01:42]} 20. e4 {[%clk 0:01:55]}  dxe4 {[%clk 0:01:41]} 21. Bxe4 {[%clk 0:01:55]}  Nf6 {[%clk 0:01:27]} 22. Rad1 {[%clk 0:01:48]}  Nxe4 {[%clk 0:01:16]} 23. Qxe4 {[%clk 0:01:47]}  e6 {[%clk 0:01:11]} 24. Nxc6 {[%clk 0:01:36]}  Qc7 {[%clk 0:00:18]} 25. d5 {[%clk 0:01:29]}  Bxc6 {[%clk 0:00:16]} 26. dxc6 {[%clk 0:01:28]}  Ra6 {[%clk 0:00:13]} 27. Rd6 {[%clk 0:01:27]}  Rc8 {[%clk 0:00:13]} 28. Qe5+ {[%clk 0:01:20]}  Kg8 {[%clk 0:00:11]} 29. f5 {[%clk 0:01:11]}  exf5 {[%clk 0:00:08]} 30. Qd5 {[%clk 0:00:58]}  Rxc6 {[%clk 0:00:07]} 31. Rd7 {[%clk 0:00:58]} 1-0


[Site "https://www.chess.com"]

[Event "Titled Tuesday Blitz January 25 2022"]
[White "Jones, Gawain C B"]
[Black "Tanenbaum, Zachary"]
[WhiteFideId "409561"]
[BlackFideId "2060850"]
[WhiteElo "2657"]
[BlackElo "2168"]
[Result "1-0"]
[Round "02"]
[TimeControl "180+1"]
[Date "2022.01.26"]
[WhiteClock "0:00:07"]
[BlackClock "0:00:03"]

1. e4 {[%clk 0:03:00]}  e5 {[%clk 0:02:59]} 2. Nf3 {[%clk 0:03:00]}  Nc6 {[%clk 0:02:59]} 3. c3 {[%clk 0:02:58]}  Nf6 {[%clk 0:02:59]} 4. d4 {[%clk 0:02:58]}  Nxe4 {[%clk 0:02:55]} 5. d5 {[%clk 0:02:57]}  Ne7 {[%clk 0:02:55]} 6. Nxe5 {[%clk 0:02:55]}  Ng6 {[%clk 0:02:51]} 7. Nxg6 {[%clk 0:02:51]}  hxg6 {[%clk 0:02:52]} 8. Bd3 {[%clk 0:02:51]}  Nf6 {[%clk 0:02:47]} 9. c4 {[%clk 0:02:49]}  Bc5 {[%clk 0:02:42]} 10. O-O {[%clk 0:02:46]}  d6 {[%clk 0:02:41]} 11. Re1+ {[%clk 0:02:44]}  Kf8 {[%clk 0:02:41]} 12. Bg5 {[%clk 0:02:26]}  Bf5 {[%clk 0:01:25]} 13. Bxf5 {[%clk 0:01:55]}  gxf5 {[%clk 0:01:25]} 14. Nc3 {[%clk 0:01:55]}  c6 {[%clk 0:01:02]} 15. Qf3 {[%clk 0:01:46]}  g6 {[%clk 0:00:59]} 16. dxc6 {[%clk 0:01:38]}  bxc6 {[%clk 0:01:00]} 17. Rad1 {[%clk 0:01:38]}  Kg7 {[%clk 0:00:57]} 18. Na4 {[%clk 0:01:34]}  Bb4 {[%clk 0:00:41]} 19. Re2 {[%clk 0:01:34]}  Qa5 {[%clk 0:00:37]} 20. Bxf6+ {[%clk 0:01:27]}  Kxf6 {[%clk 0:00:38]} 21. Qxc6 {[%clk 0:01:06]}  Rac8 {[%clk 0:00:31]} 22. Qd5 {[%clk 0:00:39]}  Qxa4 {[%clk 0:00:19]} 23. Qd4+ {[%clk 0:00:39]}  Kg5 {[%clk 0:00:19]} 24. Rd3 {[%clk 0:00:35]}  f4 {[%clk 0:00:14]} 25. g3 {[%clk 0:00:24]}  fxg3 {[%clk 0:00:12]} 26. Rxg3+ {[%clk 0:00:22]}  Kh6 {[%clk 0:00:11]} 27. Rh3+ {[%clk 0:00:19]}  Kg5 {[%clk 0:00:11]} 28. Rg3+ {[%clk 0:00:16]}  Kh6 {[%clk 0:00:11]} 29. b3 {[%clk 0:00:11]}  Qd7 {[%clk 0:00:05]} 30. Re4 {[%clk 0:00:07]}  g5 {[%clk 0:00:03]} 31. Qf6+ {[%clk 0:00:07]}  Kh7 {[%clk 0:00:04]} 32. Rh4+ {[%clk 0:00:07]}  gxh4 {[%clk 0:00:03]} 33. Qg7# {[%clk 0:00:07]} 1-0


[Site "https://www.chess.com"]

[Event "Titled Tuesday Blitz January 25 2022"]
[White "Karttunen, Mika"]
[Black "Siddharth, Jagadeesh"]
[WhiteFideId "502081"]
[BlackFideId "5818320"]
[WhiteElo "2343"]
[BlackElo "2127"]
[Result "0-1"]
[Round "02"]
[TimeControl "180+1"]
[Date "2022.01.26"]
[WhiteClock "0:00:10"]
[BlackClock "0:00:19"]

1. d4 {[%clk 0:02:56]}  d5 {[%clk 0:02:59]} 2. c4 {[%clk 0:02:55]}  dxc4 {[%clk 0:03:00]} 3. e3 {[%clk 0:02:54]}  Nf6 {[%clk 0:03:00]} 4. Bxc4 {[%clk 0:02:44]}  e6 {[%clk 0:03:00]} 5. Nf3 {[%clk 0:02:43]}  c5 {[%clk 0:03:01]} 6. O-O {[%clk 0:02:43]}  a6 {[%clk 0:03:01]} 7. Qe2 {[%clk 0:02:42]}  b5 {[%clk 0:03:00]} 8. Bb3 {[%clk 0:02:42]}  Bb7 {[%clk 0:03:00]} 9. Rd1 {[%clk 0:02:42]}  Nbd7 {[%clk 0:03:00]} 10. a4 {[%clk 0:02:38]}  b4 {[%clk 0:03:01]} 11. Nbd2 {[%clk 0:02:23]}  Qc7 {[%clk 0:03:00]} 12. a5 {[%clk 0:02:15]}  Be7 {[%clk 0:03:00]} 13. Nc4 {[%clk 0:02:08]}  O-O {[%clk 0:03:00]} 14. Nfe5 {[%clk 0:01:46]}  cxd4 {[%clk 0:02:48]} 15. exd4 {[%clk 0:01:45]}  Bd5 {[%clk 0:02:48]} 16. Bg5 {[%clk 0:01:27]}  Rfe8 {[%clk 0:02:23]} 17. Ba4 {[%clk 0:01:16]}  Nxe5 {[%clk 0:02:01]} 18. Nxe5 {[%clk 0:01:09]}  Rec8 {[%clk 0:02:01]} 19. h3 {[%clk 0:00:52]}  Ne4 {[%clk 0:01:52]} 20. Be3 {[%clk 0:00:42]}  Nd6 {[%clk 0:01:47]} 21. Rdc1 {[%clk 0:00:31]}  Qxa5 {[%clk 0:01:38]} 22. Bc6 {[%clk 0:00:31]}  Qb6 {[%clk 0:01:20]} 23. Bxa8 {[%clk 0:00:30]}  Rxa8 {[%clk 0:01:21]} 24. Qc2 {[%clk 0:00:26]}  f6 {[%clk 0:01:13]} 25. Nd7 {[%clk 0:00:21]}  Qb7 {[%clk 0:01:07]} 26. Nc5 {[%clk 0:00:21]}  Qc6 {[%clk 0:01:05]} 27. f3 {[%clk 0:00:20]}  a5 {[%clk 0:01:00]} 28. Bf2 {[%clk 0:00:20]}  Nf5 {[%clk 0:00:58]} 29. Qa4 {[%clk 0:00:20]}  Qb6 {[%clk 0:00:50]} 30. Nd7 {[%clk 0:00:19]}  Qd6 {[%clk 0:00:50]} 31. Nc5 {[%clk 0:00:19]}  Rd8 {[%clk 0:00:49]} 32. Qxa5 {[%clk 0:00:18]}  Qf4 {[%clk 0:00:46]} 33. Qxb4 {[%clk 0:00:19]}  Bd6 {[%clk 0:00:40]} 34. Qc3 {[%clk 0:00:15]}  Qh2+ {[%clk 0:00:38]} 35. Kf1 {[%clk 0:00:15]}  Ng3+ {[%clk 0:00:37]} 36. Bxg3 {[%clk 0:00:15]}  Bxg3 {[%clk 0:00:38]} 37. Ne4 {[%clk 0:00:11]}  Qh1+ {[%clk 0:00:33]} 38. Ke2 {[%clk 0:00:12]}  Qxg2+ {[%clk 0:00:34]} 39. Ke3 {[%clk 0:00:13]}  Bxe4 {[%clk 0:00:22]} 40. fxe4 {[%clk 0:00:13]}  Qf2+ {[%clk 0:00:23]} 41. Kd3 {[%clk 0:00:13]}  Be5 {[%clk 0:00:24]} 42. Ra4 {[%clk 0:00:12]}  Bf4 {[%clk 0:00:22]} 43. Rd1 {[%clk 0:00:12]}  Qf3+ {[%clk 0:00:18]} 44. Kc2 {[%clk 0:00:13]}  Qe2+ {[%clk 0:00:19]} 45. Rd2 {[%clk 0:00:11]}  Bxd2 {[%clk 0:00:19]} 46. Qxd2 {[%clk 0:00:11]}  Rc8+ {[%clk 0:00:20]} 47. Kb3 {[%clk 0:00:10]}  Qxd2 {[%clk 0:00:19]} 0-1


[Site "https://www.chess.com"]